fUSD/lending_fUSD_20250217
["ID","MTS","AMOUNT","RATE_DAILY","PERIOD"]
[353338679,1739782254363,-379.59894423,0.0001378,2]
[353338680,1739782254372,-500.0,0.0001378,2]
[353338681,1739782254381,-995.97,0.0001378,2]
[353338682,1739782254391,-500.0,0.0001378,2]
[353338683,1739782254402,-500.0,0.0001378,2]
[353338684,1739782254412,-536.86,0.0001378,2]
[353338685,1739782254421,-500.0,0.0001378,2]
[353338686,1739782254431,-566.9,0.0001378,2]
[353338687,1739782254440,-500.0,0.0001378,2]
[353338688,1739782254449,-500.0,0.0001378,2]
[353338689,1739782254458,-500.0,0.0001378,2]
[353338690,1739782254467,-500.0,0.0001378,2]
[353338691,1739782254477,-500.0,0.0001378,2]
[353338692,1739782254487,-500.0,0.0001378,2]
[353338693,1739782254497,-500.0,0.0001378,2]
[353338694,1739782254507,-500.0,0.0001378,2]
[353338695,1739782254517,-500.0,0.0001378,2]
[353338696,1739782254527,-500.0,0.0001378,2]
[353338697,1739782254538,-500.0,0.0001378,2]
[353338698,1739782254548,-500.0,0.0001378,2]
[353338699,1739782254557,-500.0,0.0001378,2]
[353338700,1739782254567,-500.0,0.0001378,2]
[353338701,1739782254576,-500.0,0.0001378,2]
[353338702,1739782254585,-500.0,0.0001378,2]
[353338703,1739782254595,-738.44,0.0001378,2]
[353338704,1739782254604,-500.0,0.0001378,2]
[353338705,1739782254613,-500.0,0.0001378,2]
[353338706,1739782254622,-580.16,0.0001378,2]
[353338707,1739782254631,-500.0,0.0001378,2]
[353338708,1739782254641,-500.0,0.0001378,2]
[353338709,1739782254650,-619.49,0.0001378,2]
[353338710,1739782254659,-560.76,0.0001378,2]
[353338711,1739782254668,-500.0,0.0001378,2]
[353338712,1739782254677,-500.0,0.0001378,2]
[353338713,1739782254686,-1077.47,0.0001378,2]
[353338714,1739782254696,-500.0,0.0001378,2]
[353338715,1739782254705,-536.91,0.0001378,2]
[353338716,1739782254714,-500.0,0.0001378,2]
[353338717,1739782254723,-500.0,0.0001378,2]
[353338718,1739782254732,-500.0,0.0001378,2]
[353338719,1739782254741,-500.0,0.0001378,2]
[353338720,1739782254750,-558.82,0.0001378,2]
[353338721,1739782254760,-500.0,0.0001378,2]
[353338722,1739782254769,-850.62,0.0001378,2]
[353338723,1739782254778,-500.0,0.0001378,2]
[353338724,1739782254788,-708.1,0.0001378,2]
[353338725,1739782254798,-500.0,0.0001378,2]
[353338726,1739782254807,-641.57,0.0001378,2]
[353338727,1739782254817,-528.32,0.0001378,2]
[353338728,1739782254827,-500.0,0.0001378,2]
[353338729,1739782254837,-684.2,0.0001378,2]
[353338730,1739782254846,-890.46,0.0001378,2]
[353338731,1739782254855,-500.0,0.0001378,2]
[353338732,1739782254865,-612.05,0.0001378,2]
[353338733,1739782254874,-500.0,0.0001378,2]
[353338734,1739782254884,-568.28,0.0001378,2]
[353338735,1739782254893,-500.0,0.0001378,2]
[353338736,1739782254903,-537.33,0.0001378,2]
[353338737,1739782254912,-500.0,0.0001378,2]
[353338738,1739782254922,-647.11,0.0001378,2]
[353338739,1739782254931,-743.6,0.0001378,2]
[353338740,1739782254941,-783.7,0.0001378,2]
[353338741,1739782254950,-500.0,0.0001378,2]
[353338742,1739782254959,-559.89,0.0001378,2]
[353338743,1739782254969,-500.0,0.0001378,2]
[353338744,1739782254978,-649.94,0.0001378,2]
[353338745,1739782254987,-500.0,0.0001378,2]
[353338746,1739782254996,-500.0,0.0001378,2]
[353338747,1739782255006,-500.0,0.0001378,2]
[353338748,1739782255016,-500.0,0.0001378,2]
[353338749,1739782255025,-500.0,0.0001378,2]
[353338750,1739782255034,-500.0,0.0001378,2]
[353338751,1739782255045,-500.0,0.0001378,2]
[353338752,1739782255055,-500.0,0.0001378,2]
[353338753,1739782255065,-560.76,0.0001378,2]
[353338754,1739782255075,-950.17,0.0001378,2]
[353338755,1739782255086,-500.0,0.0001378,2]
[353338756,1739782255095,-593.13,0.0001378,2]
[353338757,1739782255105,-410.16450614,0.0001378,2]
[353338758,1739782255115,-561.01,0.0001378,2]
[353338759,1739782255125,-500.0,0.0001378,2]
[353338760,1739782255136,-500.0,0.0001378,2]
[353338761,1739782255145,-500.0,0.0001378,2]
[353338762,1739782255155,-500.0,0.0001378,2]
[353338763,1739782255165,-500.0,0.0001378,2]
[353338764,1739782255176,-500.0,0.0001378,2]
[353338765,1739782255187,-500.0,0.0001378,2]
[353338766,1739782255197,-500.0,0.0001378,2]
[353338767,1739782255207,-622.63,0.0001378,2]
[353338768,1739782255219,-500.0,0.0001378,2]
[353338769,1739782255229,-500.0,0.0001378,2]
[353338770,1739782255239,-500.0,0.0001378,2]
[353338771,1739782255249,-508.41,0.0001378,2]
[353338772,1739782255260,-500.0,0.0001378,2]
[353338773,1739782255269,-500.0,0.0001378,2]
[353338774,1739782255279,-500.0,0.0001378,2]
[353338775,1739782255290,-500.0,0.0001378,2]
[353338776,1739782255300,-500.0,0.0001378,2]
[353338777,1739782255309,-716.43,0.0001378,2]
[353338778,1739782255319,-500.0,0.0001378,2]
[353338779,1739782255328,-530.22,0.0001378,2]
[353338780,1739782255338,-500.0,0.0001378,2]
[353338781,1739782255347,-733.96,0.0001378,2]
[353338782,1739782255356,-500.0,0.0001378,2]
[353338783,1739782255366,-500.0,0.0001378,2]
[353338784,1739782255375,-500.0,0.0001378,2]
[353338785,1739782255385,-500.0,0.0001378,2]
[353338786,1739782255394,-500.0,0.0001378,2]
[353338787,1739782255404,-673.88,0.0001378,2]
[353338788,1739782255416,-500.0,0.0001378,2]
[353338789,1739782255426,-511.13,0.0001378,2]
[353338790,1739782255435,-511.17869921,0.0001378,2]
[353338791,1739782255445,-500.0,0.0001378,2]
[353338792,1739782255454,-559.67,0.0001378,2]
[353338793,1739782255463,-500.0,0.0001378,2]
[353338794,1739782255473,-778.97,0.0001378,2]
[353338795,1739782255482,-500.0,0.0001378,2]
[353338796,1739782255491,-500.0,0.0001378,2]
[353338797,1739782255500,-500.0,0.0001378,2]
[353338798,1739782255510,-500.0,0.0001378,2]
[353338799,1739782255519,-500.0,0.0001378,2]
[353338800,1739782255528,-500.0,0.0001378,2]
[353338801,1739782255538,-516.21401932,0.0001378,2]
[353338802,1739782255547,-500.0,0.0001378,2]
[353338803,1739782255557,-1031.51,0.0001378,2]
[353338804,1739782255567,-500.0,0.0001378,2]
[353338805,1739782255575,-662.08,0.0001378,2]
[353338806,1739782255585,-500.0,0.0001378,2]
[353338807,1739782255595,-500.0,0.0001378,2]
[353338808,1739782255725,-766.22,0.0001378,2]
[353338809,1739782255735,-500.0,0.0001378,2]
[353338810,1739782255745,-500.0,0.0001378,2]
[353338811,1739782255755,-500.0,0.0001378,2]
[353338812,1739782255764,-500.0,0.0001378,2]
[353338813,1739782255773,-500.0,0.0001378,2]
[353338814,1739782255783,-500.0,0.0001378,2]
[353338815,1739782255793,-500.0,0.0001378,2]
[353338816,1739782255802,-512.68132706,0.0001378,2]
[353338817,1739782255812,-500.0,0.0001378,2]
[353338818,1739782255821,-500.0,0.0001378,2]
[353338819,1739782255830,-500.0,0.0001378,2]
[353338820,1739782255839,-572.19,0.0001378,2]
[353338821,1739782255852,-505.1213862,0.0001378,2]
[353338822,1739782255862,-500.0,0.0001378,2]
[353338823,1739782255872,-479.81009145,0.0001378,2]
[353338824,1739782255882,-500.0,0.0001378,2]
[353338825,1739782255891,-500.0,0.0001378,2]
[353338826,1739782255901,-500.0,0.0001378,2]
[353338827,1739782255911,-500.0,0.0001378,2]
[353338828,1739782255920,-500.0,0.0001378,2]
[353338829,1739782255931,-500.0,0.0001378,2]
[353338830,1739782255941,-817.69,0.0001378,2]
[353338831,1739782255951,-500.0,0.0001378,2]
[353338832,1739782255960,-500.0,0.0001378,2]
[353338833,1739782255970,-500.0,0.0001378,2]
[353338834,1739782255979,-500.0,0.0001378,2]
[353338835,1739782255989,-500.0,0.0001378,2]
[353338836,1739782255999,-500.0,0.0001378,2]
[353338837,1739782256008,-500.0,0.0001378,2]
[353338838,1739782256019,-519.96,0.0001378,2]
[353338839,1739782256029,-500.0,0.0001378,2]
[353338840,1739782256038,-500.0,0.0001378,2]
[353338841,1739782256048,-500.0,0.0001378,2]
[353338842,1739782256059,-500.0,0.0001378,2]
[353338843,1739782256068,-500.0,0.0001378,2]
[353338844,1739782256077,-425.51824315,0.0001378,2]
[353338845,1739782256087,-522.84,0.0001378,2]
[353338846,1739782256096,-500.0,0.0001378,2]
[353338847,1739782256106,-500.0,0.0001378,2]
[353338848,1739782256115,-500.0,0.0001378,2]
[353338849,1739782256124,-514.26638183,0.0001378,2]
[353338850,1739782256133,-500.0,0.0001378,2]
[353338851,1739782256144,-500.0,0.0001378,2]
[353338852,1739782256153,-500.0,0.0001378,2]
[353338853,1739782256162,-325.95978333,0.0001378,2]
[353338854,1739782256172,-614.77,0.0001378,2]
[353338855,1739782256182,-500.0,0.0001378,2]
[353338856,1739782256192,-2827.32,0.0001378,2]
[353338857,1739782256202,-1812.07,0.0001378,2]
[353338858,1739782256212,-500.0,0.0001378,2]
[353338859,1739782256225,-520.4,0.0001378,2]
[353338860,1739782256234,-500.0,0.0001378,2]
[353338861,1739782256243,-500.0,0.0001378,2]
[353338862,1739782256254,-819.14,0.0001378,2]
[353338863,1739782256263,-500.0,0.0001378,2]
[353338864,1739782256273,-1274.62,0.0001378,2]
[353338865,1739782256283,-500.0,0.0001378,2]
[353338866,1739782256293,-4372.56,0.0001378,2]
[353338867,1739782256303,-500.0,0.0001378,2]
[353338868,1739782256314,-500.0,0.0001378,2]
[353338869,1739782256323,-500.0,0.0001378,2]
[353338870,1739782256333,-500.0,0.0001378,2]
[353338871,1739782256342,-500.0,0.0001378,2]
[353338872,1739782256352,-538.08,0.0001378,2]
[353338873,1739782256362,-1324.0,0.0001378,2]
[353338874,1739782256371,-901.12,0.0001378,2]
[353338875,1739782256380,-500.0,0.0001378,2]
[353338876,1739782256390,-500.0,0.0001378,2]
[353338877,1739782256404,-500.0,0.0001378,2]
[353338878,1739782256414,-500.0,0.0001378,2]
[353338879,1739782256424,-500.0,0.0001378,2]
[353338880,1739782256434,-500.0,0.0001378,2]
[353338881,1739782256443,-500.0,0.0001378,2]
[353338882,1739782256454,-1422.17,0.0001378,2]
[353338883,1739782256464,-500.0,0.0001378,2]
[353338884,1739782256474,-817.6,0.0001378,2]
[353338885,1739782256485,-1334.19,0.0001378,2]
[353338886,1739782256495,-500.0,0.0001378,2]
[353338887,1739782256504,-503.38419656,0.0001378,2]
[353338888,1739782256513,-500.0,0.0001378,2]
[353338889,1739782256523,-2256.34,0.0001378,2]
[353338890,1739782256533,-500.0,0.0001378,2]
[353338891,1739782256544,-500.0,0.0001378,2]
[353338892,1739782256554,-771.38,0.0001378,2]
[353338893,1739782256563,-500.0,0.0001378,2]
[353338894,1739782256573,-356.65366265,0.0001378,2]
[353338895,1739782256582,-735.66,0.0001378,2]
[353338896,1739782256591,-2032.65,0.0001378,2]
[353338897,1739782256601,-606.17239037,0.0001378,2]
[353338898,1739782256611,-500.0,0.0001378,2]
[353338899,1739782256620,-749.45,0.0001378,2]
[353338900,1739782256629,-500.0,0.0001378,2]
[353338901,1739782256638,-534.6903226,0.0001378,2]
[353338902,1739782256647,-500.0,0.0001378,2]
[353338903,1739782256657,-500.0,0.0001378,2]
[353338904,1739782256667,-514.30544979,0.0001378,2]
[353338905,1739782256677,-1125.52,0.0001378,2]
[353338906,1739782256688,-772.0,0.0001378,2]
[353338907,1739782256699,-436.42759409,0.0001378,2]
[353338908,1739782256708,-739.22,0.0001378,2]
[353338909,1739782256718,-500.0,0.0001378,2]
[353338910,1739782256727,-1069.07,0.0001378,2]
[353338911,1739782256736,-546.19,0.0001378,2]
[353338912,1739782256746,-500.0,0.0001378,2]
[353338913,1739782256756,-500.0,0.0001378,2]
[353338914,1739782256765,-1494.23,0.0001378,2]
[353338915,1739782256774,-864.83,0.0001378,2]
[353338916,1739782256783,-500.0,0.0001378,2]
[353338917,1739782256794,-500.0,0.0001378,2]
[353338918,1739782256804,-500.0,0.0001378,2]
[353338919,1739782256814,-935.35,0.0001378,2]
[353338920,1739782256823,-615.69,0.0001378,2]
[353338921,1739782256832,-500.0,0.0001378,2]
[353338922,1739782256843,-677.77,0.0001378,2]
[353338923,1739782256852,-500.0,0.0001378,2]
[353338924,1739782256862,-507.40982889,0.0001378,2]
[353338925,1739782256872,-707.08,0.0001378,2]
[353338926,1739782256882,-500.0,0.0001378,2]
[353338927,1739782256891,-500.0,0.0001378,2]
[353338928,1739782256901,-500.0,0.0001378,2]
[353338929,1739782256911,-1876.33,0.0001378,2]
[353338930,1739782256921,-2554.16,0.0001378,2]
[353338931,1739782256930,-504.37586616,0.0001378,2]
[353338932,1739782256940,-1026.29,0.0001378,2]
[353338933,1739782256950,-1043.92,0.0001378,2]
[353338934,1739782256959,-500.0,0.0001378,2]
[353338935,1739782256969,-500.0,0.0001378,2]
[353338936,1739782256977,-500.0,0.0001378,2]
[353338937,1739782256986,-500.0,0.0001378,2]
[353338938,1739782256996,-500.0,0.0001378,2]
[353338939,1739782257006,-1889.27,0.0001378,2]
[353338940,1739782257016,-511.78185647,0.0001378,2]
[353338941,1739782257025,-500.0,0.0001378,2]
[353338942,1739782257035,-500.0,0.0001378,2]
[353338943,1739782257045,-875.92,0.0001378,2]
[353338944,1739782257055,-1579.86,0.0001378,2]
[353338945,1739782257065,-500.0,0.0001378,2]
[353338946,1739782257075,-500.0,0.0001378,2]
[353338947,1739782257084,-500.0,0.0001378,2]
[353338948,1739782257094,-500.0,0.0001378,2]
[353338949,1739782257103,-500.0,0.0001378,2]
[353338950,1739782257113,-1021.86,0.0001378,2]
[353338951,1739782257122,-500.0,0.0001378,2]
[353338952,1739782257132,-2430.21,0.0001378,2]
[353338953,1739782257142,-500.0,0.0001378,2]
[353338954,1739782257151,-1775.26,0.0001378,2]
[353338955,1739782257161,-1126.39,0.0001378,2]
[353338956,1739782257170,-500.0,0.0001378,2]
[353338957,1739782257179,-500.0,0.0001378,2]
[353338958,1739782257189,-500.0,0.0001378,2]
[353338959,1739782257199,-1246.28,0.0001378,2]
[353338960,1739782257208,-1440.41,0.0001378,2]
[353338961,1739782257218,-500.0,0.0001378,2]
[353338962,1739782257228,-1157.83,0.0001378,2]
[353338963,1739782257237,-579.64,0.0001378,2]
[353338964,1739782257247,-500.0,0.0001378,2]
[353338965,1739782257257,-736.98,0.0001378,2]
[353338966,1739782257266,-602.96,0.0001378,2]
[353338967,1739782257276,-1734.6,0.0001378,2]
[353338968,1739782257285,-662.81,0.0001378,2]
[353338969,1739782257295,-996.06,0.0001378,2]
[353338970,1739782257305,-500.0,0.0001378,2]
[353338971,1739782257314,-1538.42,0.0001378,2]
[353338972,1739782257323,-1344.96,0.0001378,2]
[353338973,1739782257332,-504.02152965,0.0001378,2]
[353338974,1739782257342,-500.0,0.0001378,2]
[353338975,1739782257352,-1060.38,0.0001378,2]
[353338976,1739782257365,-1225.17,0.0001378,2]
[353338977,1739782257375,-500.0,0.0001378,2]
[353338978,1739782257384,-500.0,0.0001378,2]
[353338979,1739782257394,-500.0,0.0001378,2]
[353338980,1739782257405,-500.0,0.0001378,2]
[353338981,1739782257416,-500.0,0.0001378,2]
[353338982,1739782257425,-1000.0,0.0001378,2]
[353338983,1739782257434,-879.19,0.0001378,2]
[353338984,1739782257445,-500.0,0.0001378,2]
[353338985,1739782257454,-585.71287501,0.0001378,2]
[353338986,1739782257464,-627.0,0.0001378,2]
[353338987,1739782257474,-500.0,0.0001378,2]
[353338988,1739782257486,-500.0,0.0001378,2]
[353338989,1739782257500,-5333.3,0.0001378,2]
[353338990,1739782257519,-1241.74,0.0001378,2]
[353338991,1739782257528,-500.0,0.0001378,2]
[353338992,1739782257538,-500.0,0.0001378,2]
[353338993,1739782257548,-1771.28,0.0001378,2]
[353338994,1739782257557,-885.43,0.0001378,2]
[353338995,1739782257567,-1586.54,0.0001378,2]
[353338996,1739782257577,-1307.73,0.0001378,2]
[353338997,1739782257586,-500.0,0.0001378,2]
[353338998,1739782257596,-756.31,0.0001378,2]
[353338999,1739782257605,-500.0,0.0001378,2]
[353339000,1739782257615,-500.0,0.0001378,2]
[353339001,1739782257624,-500.0,0.0001378,2]
[353339002,1739782257634,-500.0,0.0001378,2]
[353339003,1739782257643,-317.58193462,0.0001378,2]
[353339004,1739782257654,-917.32,0.0001378,2]
[353339005,1739782257664,-707.23,0.0001378,2]
[353339006,1739782257674,-500.0,0.0001378,2]
[353339007,1739782257683,-2401.78,0.0001378,2]
[353339008,1739782257692,-1455.33,0.0001378,2]
[353339009,1739782257702,-513.34818159,0.0001378,2]
[353339010,1739782257711,-1605.77,0.0001378,2]
[353339011,1739782257723,-500.0,0.0001378,2]
[353339012,1739782257733,-1089.15,0.0001378,2]
[353339013,1739782257742,-1269.98,0.0001378,2]
[353339014,1739782257871,-500.0,0.0001378,2]
[353339015,1739782257882,-500.0,0.0001378,2]
[353339016,1739782257892,-998.9,0.0001378,2]
[353339017,1739782257902,-1551.79,0.0001378,2]
[353339018,1739782257913,-500.0,0.0001378,2]
[353339019,1739782257923,-1847.02,0.0001378,2]
[353339020,1739782257932,-500.0,0.0001378,2]
[353339021,1739782257942,-586.8,0.0001378,2]
[353339022,1739782257953,-505.39884064,0.0001378,2]
[353339023,1739782257963,-500.0,0.0001378,2]
[353339024,1739782257973,-500.0,0.0001378,2]
[353339025,1739782257982,-500.0,0.0001378,2]
[353339026,1739782257992,-1701.27,0.0001378,2]
[353339027,1739782258002,-600.56,0.0001378,2]
[353339028,1739782258011,-500.0,0.0001378,2]
[353339029,1739782258022,-886.89,0.0001378,2]
[353339030,1739782258032,-1445.61,0.0001378,2]
[353339031,1739782258042,-1575.03,0.0001378,2]
[353339032,1739782258052,-500.0,0.0001378,2]
[353339033,1739782258061,-1677.19,0.0001378,2]
[353339034,1739782258071,-1797.4,0.0001378,2]
[353339035,1739782258081,-500.0,0.0001378,2]
[353339036,1739782258091,-922.01,0.0001378,2]
[353339037,1739782258101,-500.0,0.0001378,2]
[353339038,1739782258111,-1271.08,0.0001378,2]
[353339039,1739782258120,-1813.57,0.0001378,2]
[353339040,1739782258130,-1220.73,0.0001378,2]
[353339041,1739782258140,-500.0,0.0001378,2]
[353339042,1739782258150,-500.0,0.0001378,2]
[353339043,1739782258159,-500.0,0.0001378,2]
[353339044,1739782258168,-500.0,0.0001378,2]
[353339045,1739782258178,-1728.58,0.0001378,2]
[353339046,1739782258187,-4549.55,0.0001378,2]
[353339047,1739782258197,-500.0,0.0001378,2]
[353339048,1739782258207,-824.72,0.0001378,2]
[353339049,1739782258217,-456.32468199,0.0001378,2]
[353339050,1739782258227,-500.0,0.0001378,2]
[353339051,1739782258236,-500.0,0.0001378,2]
[353339052,1739782258245,-500.0,0.0001378,2]
[353339053,1739782258255,-1386.78,0.0001378,2]
[353339054,1739782258264,-2188.82,0.0001378,2]
[353339055,1739782258276,-500.0,0.0001378,2]
[353339056,1739782258285,-500.0,0.0001378,2]
[353339057,1739782258295,-500.0,0.0001378,2]
[353339058,1739782258304,-500.0,0.0001378,2]
[353339059,1739782258313,-500.0,0.0001378,2]
[353339060,1739782258322,-571.8,0.0001378,2]
[353339061,1739782258332,-500.0,0.0001378,2]
[353339062,1739782258342,-988.86,0.0001378,2]
[353339063,1739782258352,-500.0,0.0001378,2]
[353339064,1739782258361,-500.0,0.0001378,2]
[353339065,1739782258370,-1847.84,0.0001378,2]
[353339066,1739782258379,-500.0,0.0001378,2]
[353339067,1739782258390,-1053.02,0.0001378,2]
[353339068,1739782258400,-1440.2,0.0001378,2]
[353339069,1739782258414,-1037.56,0.0001378,2]
[353339070,1739782258426,-557.11,0.0001378,2]
[353339071,1739782258434,-500.0,0.0001378,2]
[353339072,1739782258445,-500.0,0.0001378,2]
[353339073,1739782258454,-802.9,0.0001378,2]
[353339074,1739782258463,-500.0,0.0001378,2]
[353339075,1739782258472,-1363.24,0.0001378,2]
[353339076,1739782258481,-500.0,0.0001378,2]
[353339077,1739782258491,-2029.25,0.0001378,2]
[353339078,1739782258509,-683.14,0.0001378,2]
[353339079,1739782258518,-562.58,0.0001378,2]
[353339080,1739782258527,-500.0,0.0001378,2]
[353339081,1739782258536,-664.98,0.0001378,2]
[353339082,1739782258546,-500.0,0.0001378,2]
[353339083,1739782258555,-500.0,0.0001378,2]
[353339084,1739782258565,-1710.06,0.0001378,2]
[353339085,1739782258573,-506.68085639,0.0001378,2]
[353339086,1739782258583,-649.3,0.0001378,2]
[353339087,1739782258592,-1213.04,0.0001378,2]
[353339088,1739782258601,-2532.35,0.0001378,2]
[353339089,1739782258610,-513.20762086,0.0001378,2]
[353339090,1739782258620,-500.0,0.0001378,2]
[353339091,1739782258629,-538.6,0.0001378,2]
[353339092,1739782258639,-500.0,0.0001378,2]
[353339093,1739782258650,-702.88,0.0001378,2]
[353339094,1739782258659,-500.0,0.0001378,2]
[353339095,1739782258668,-1331.97,0.0001378,2]
[353339096,1739782258678,-900.35,0.0001378,2]
[353339097,1739782258687,-606.3,0.0001378,2]
[353339098,1739782258696,-500.0,0.0001378,2]
[353339099,1739782258706,-503.2225276,0.0001378,2]
[353339100,1739782258715,-500.0,0.0001378,2]
[353339101,1739782258724,-500.0,0.0001378,2]
[353339102,1739782258733,-500.0,0.0001378,2]
[353339103,1739782258742,-1040.4,0.0001378,2]
[353339104,1739782258751,-1450.57,0.0001378,2]
[353339105,1739782258761,-1277.8,0.0001378,2]
[353339106,1739782258770,-500.0,0.0001378,2]
[353339107,1739782258781,-1045.42,0.0001378,2]
[353339108,1739782258791,-500.0,0.0001378,2]
[353339109,1739782258800,-500.0,0.0001378,2]
[353339110,1739782258810,-500.0,0.0001378,2]
[353339111,1739782258820,-844.67,0.0001378,2]
[353339112,1739782258829,-1239.77,0.0001378,2]
[353339113,1739782258838,-1330.04,0.0001378,2]
[353339114,1739782258848,-500.0,0.0001378,2]
[353339115,1739782258857,-545.47,0.0001378,2]
[353339116,1739782258866,-500.0,0.0001378,2]
[353339117,1739782258875,-500.0,0.0001378,2]
[353339118,1739782258884,-753.37,0.0001378,2]
[353339119,1739782258893,-1295.43,0.0001378,2]
[353339120,1739782258902,-500.0,0.0001378,2]
[353339121,1739782258913,-500.0,0.0001378,2]
[353339122,1739782258922,-538.43,0.0001378,2]
[353339123,1739782258932,-500.0,0.0001378,2]
[353339124,1739782258941,-1569.09,0.0001378,2]
[353339125,1739782258951,-500.0,0.00013863,2]
[353339126,1739782258960,-808.574074,0.00013863,2]
[353339127,1739782258969,-655.639204,0.00013863,2]
[353339128,1739782258979,-155.338411,0.00013863,6]
[353339129,1739782258988,-500.0,0.00013863,2]
[353339130,1739782258997,-500.0,0.00013863,2]
[353339131,1739782259006,-500.0,0.00013863,2]
[353339132,1739782259015,-500.0,0.00013863,2]
[353339133,1739782259024,-500.0,0.00013863,2]
[353339134,1739782259033,-500.0,0.00013863,2]
[353339135,1739782259042,-500.0,0.00013863,2]
[353339136,1739782259051,-500.0,0.00013863,2]
[353339137,1739782259060,-500.0,0.00013863,2]
[353339138,1739782259069,-500.0,0.00013863,2]
[353339139,1739782259078,-500.0,0.00013863,2]
[353339140,1739782259087,-500.0,0.00013863,2]
[353339141,1739782259096,-500.0,0.00013863,2]
[353339142,1739782259105,-500.0,0.00013863,2]
[353339143,1739782259114,-500.0,0.00013863,2]
[353339144,1739782259123,-500.0,0.00013863,2]
[353339145,1739782259132,-500.0,0.00013863,2]
[353339146,1739782259142,-500.0,0.00013863,2]
[353339147,1739782259151,-500.0,0.00013863,2]
[353339148,1739782259160,-500.0,0.00013863,2]
[353339149,1739782259170,-500.0,0.00013863,2]
[353339150,1739782259179,-500.0,0.00013863,2]
[353339151,1739782259188,-500.0,0.00013863,2]
[353339152,1739782259198,-500.0,0.00013863,2]
[353339153,1739782259207,-500.0,0.00013863,2]
[353339154,1739782259216,-500.0,0.00013863,2]
[353339155,1739782259225,-500.0,0.00013863,2]
[353339156,1739782259234,-500.0,0.00013863,2]
[353339157,1739782259243,-500.0,0.00013863,2]
[353339158,1739782259251,-500.0,0.00013863,2]
[353339159,1739782259260,-500.0,0.00013863,2]
[353339160,1739782259269,-513.82347748,0.00013863,2]
[353339161,1739782259278,-511.75331093,0.00013863,2]
[353339162,1739782259288,-604.74,0.00013863,2]
[353339163,1739782259298,-500.0,0.00013863,2]
[353339164,1739782259306,-500.0,0.00013863,2]
[353339165,1739782259315,-500.0,0.00013863,2]
[353339166,1739782259324,-575.7,0.00013863,2]
[353339167,1739782259333,-907.72,0.00013863,2]
[353339168,1739782259342,-500.0,0.00013863,2]
[353339169,1739782259351,-500.0,0.00013863,2]
[353339170,1739782259359,-516.11256226,0.00013863,2]
[353339171,1739782259369,-732.02,0.00013863,2]
[353339172,1739782259378,-500.0,0.00013863,2]
[353339173,1739782259387,-562.63,0.00013863,2]
[353339174,1739782259396,-500.0,0.00013863,2]
[353339175,1739782259408,-500.0,0.00013863,2]
[353339176,1739782259417,-951.64,0.00013863,2]
[353339177,1739782259426,-500.0,0.00013863,2]
[353339178,1739782259435,-633.77,0.00013863,2]